bitfinex/quotes_ETHUSD_20240811
["timestamp","ask_amount","ask_price","bid_price","bid_amount"]
[1723360279462,9.685,2670.2,2669.9,2.62175]
[1723360279664,2.385,2670.2,2669.9,2.62175]
[1723360280061,2.385,2670.2,2670.1,2.62162]
[1723360280263,2.385,2670.6,2670.0,2.35300093]
[1723360280462,2.385,2670.6,2670.2,2.62146]
[1723360282403,2.62047,2671.3,2670.1,3.17154]
[1723360282404,0.1280803,2671.8,2671.3,2.62035]
[1723360282558,0.1280803,2671.8,2671.5,2.3211]
[1723360282755,0.1280803,2671.8,2671.5,4.94135]
[1723360282989,0.1280803,2671.8,2671.6,2.62014]
[1723360283188,0.1280803,2671.8,2671.6,0.811149]
[1723360283409,0.15,2672.0,2671.9,2.61985]
[1723360283558,0.15,2672.0,2671.9,6.16985]
[1723360283765,0.15,2672.0,2671.9,6.24406906]
[1723360284010,0.15,2672.0,2671.9,8.86391906]
[1723360284298,0.15,2672.0,2671.9,8.7897]
[1723360284477,0.15,2672.0,2671.9,8.49095]
[1723360284812,0.15,2672.0,2671.9,11.1108]
[1723360285095,0.15,2672.0,2671.9,9.60203]
[1723360285262,0.15,2672.0,2671.9,8.49095]
[1723360287359,0.15,2672.0,2671.9,3.55]
[1723360288386,0.15,2672.0,2671.9,6.16985]
[1723360288666,0.15,2672.0,2671.9,6.24406727]
[1723360288996,0.15,2672.0,2671.9,3.62421727]
[1723360289297,0.15,2672.0,2671.9,0.62421727]
[1723360290299,0.15,2672.0,2671.3,2.62044]
[1723360290605,0.276975,2671.9,2671.3,2.62044]
[1723360290766,0.276975,2671.9,2671.4,2.62034]
[1723360291599,0.276975,2671.9,2671.5,0.55]
[1723360291797,0.276975,2671.9,2671.5,3.55]
[1723360292000,0.276975,2671.9,2671.5,3.0]
[1723360292765,0.07549872,2671.8,2671.5,3.0]
[1723360293302,0.07549872,2671.8,2671.3,3.0]
[1723360293505,0.07549872,2671.8,2671.4,0.55]
[1723360293701,0.38773309,2671.8,2671.4,0.55]
[1723360293903,2.62006,2671.7,2671.0,2.6207]
[1723360294071,0.07549872,2671.6,2671.0,2.6207]
[1723360294473,0.07549872,2671.6,2671.1,2.6206]
[1723360294673,0.07549872,2671.7,2671.2,2.62047]
[1723360294868,0.31223437,2671.8,2671.2,2.62047]
[1723360295905,2.535,2672.0,2671.4,2.62028]
[1723360296215,2.61049872,2672.0,2671.4,2.62028]
[1723360296425,5.23025872,2672.0,2671.4,2.62028]
[1723360296723,2.61049872,2672.0,2671.4,2.62028]
[1723360296898,2.61049872,2672.0,2671.5,2.62024]
[1723360297225,4.09532859,2672.0,2671.4,2.62028]
[1723360297458,2.3181,2671.3,2670.0,2.83376117]
[1723360297734,2.6208,2671.0,2670.3,2.62134]
[1723360297935,2.6208,2671.0,2670.2,2.62151]
[1723360297936,2.62084,2670.9,2670.2,2.62151]
[1723360298101,2.69633872,2670.9,2670.2,2.62151]
[1723360298777,2.69633872,2670.9,2670.2,2.62143]
[1723360298986,2.621,2670.8,2670.2,2.62143]
[1723360299286,2.621,2670.8,2669.6,4.94314]
[1723360299287,2.62151,2670.3,2669.6,4.94314]
[1723360299536,0.07549872,2670.2,2669.6,2.62204]
[1723360299884,0.07549872,2670.2,2669.5,2.6222]
[1723360299885,2.62163,2670.1,2669.5,2.6222]
[1723360301583,0.07549872,2670.0,2669.6,3.0]
[1723360301784,0.07549872,2670.0,2669.5,2.62221]
[1723360301988,0.07549872,2670.0,2669.6,3.0]
[1723360302719,2.57099872,2670.1,2669.7,2.622]
[1723360303235,0.07549872,2670.1,2669.7,2.622]
[1723360303526,0.07549872,2670.2,2669.7,2.622]
[1723360304688,0.07549872,2670.2,2669.6,3.0]
[1723360304892,2.62164,2670.1,2669.6,3.0]
[1723360305135,0.07549872,2670.0,2669.6,3.0]
[1723360305440,2.69721872,2670.0,2669.6,3.0]
[1723360305646,3.22910459,2670.0,2669.4,3.0]
[1723360306742,0.60738459,2670.0,2669.4,3.07491573]
[1723360306924,0.60738459,2670.0,2669.5,2.6222]
[1723360307128,0.60738459,2670.0,2669.6,3.0]
[1723360307672,7.3,2670.2,2669.7,2.622]
[1723360307879,7.3,2670.2,2669.9,2.62181]
[1723360308188,7.3,2670.2,2669.6,3.0]
[1723360308189,9.92154,2670.2,2669.6,3.0]
[1723360308500,0.07549872,2670.1,2669.5,3.0]
[1723360308780,0.07549872,2670.1,2669.6,2.62205]
[1723360309741,0.07549872,2670.1,2669.7,2.62201]
[1723360310643,7.3,2670.2,2669.7,2.62201]
[1723360310956,8.6429239,2670.2,2669.8,2.62191]
[1723360311577,8.6429239,2670.2,2669.6,2.62205]
[1723360311889,8.6429239,2670.2,2669.6,5.24408]
[1723360312095,8.6429239,2670.2,2669.6,2.62203]
[1723360312309,0.07549872,2670.1,2669.6,2.62203]
[1723360312805,1.54922288,2670.1,2669.6,2.62203]
[1723360313009,4.17084288,2670.1,2669.5,3.0]
[1723360313219,5.11723,2670.0,2669.5,3.0]
[1723360313395,0.07549872,2669.9,2669.5,3.0]
[1723360314165,2.4955,2670.0,2669.6,2.62211]
[1723360315803,2.4955,2670.0,2669.5,5.6222]
[1723360316003,8.89191428,2670.0,2669.5,3.0]
[1723360317070,11.51371428,2670.0,2669.5,3.0]
[1723360317275,8.89191428,2670.0,2669.5,3.0]
[1723360317603,1.03656384,2669.9,2669.5,3.0]
[1723360317783,1.11206256,2669.9,2669.5,3.0]
[1723360320275,1.11206256,2669.9,2669.4,3.0]
[1723360320991,1.11206256,2669.9,2669.4,5.62228]
[1723360321503,3.73388256,2669.9,2669.4,5.62228]
[1723360321682,1.08540252,2669.8,2669.4,5.62228]
[1723360321884,0.07549872,2669.7,2669.4,5.62228]
[1723360323607,0.07549872,2669.7,2669.4,3.0]
[1723360325110,0.07549872,2669.7,2669.4,2.62224]
[1723360325276,0.07549872,2669.7,2669.5,3.0]
[1723360325477,0.07549872,2669.9,2669.5,3.0]
[1723360325791,1.21929728,2669.9,2669.5,3.0]
[1723360326403,1.21929728,2669.9,2669.5,5.62211]
[1723360326602,0.07549872,2669.9,2669.5,5.62211]
[1723360331589,0.07549872,2669.9,2669.5,3.0]
[1723360334523,2.69731872,2669.9,2669.4,3.0]
[1723360336826,2.69731872,2669.9,2669.4,5.62227]
[1723360338626,2.62208,2669.7,2669.0,2.3707]
[1723360338795,0.07549872,2669.6,2669.1,0.55]
[1723360339196,0.07549872,2669.6,2669.2,2.62245]
[1723360339705,0.994,2669.3,2669.2,2.62245]
[1723360340098,0.994,2669.3,2669.2,5.62245]
[1723360341437,0.994,2669.3,2668.7,2.62296]
[1723360341438,2.62266,2669.1,2668.2,2.2517]
[1723360341647,0.994,2668.3,2668.1,2.62354]
[1723360341936,0.994,2668.3,2667.9,5.93801503]
[1723360342093,0.994,2668.0,2667.9,5.93801503]
[1723360342296,0.994,2668.0,2667.7,2.62393]
[1723360342525,0.994,2667.8,2667.7,2.62393]
[1723360343048,2.2825,2669.4,2668.9,2.6228]
[1723360343198,2.2825,2669.4,2668.7,2.62293]
[1723360343199,0.07549872,2669.3,2668.7,2.62293]
[1723360343397,0.994,2668.9,2668.8,2.69782183]
[1723360343648,0.994,2668.9,2668.8,2.62289]
[1723360343941,2.385,2669.5,2669.0,2.6227]
[1723360344237,2.2825,2669.7,2669.2,2.6225]
[1723360344394,2.385,2669.8,2669.4,2.62231]
[1723360347653,0.07549872,2669.7,2669.2,2.6225]
[1723360348205,0.07549872,2669.7,2669.3,2.62238]
[1723360351754,0.07549872,2669.7,2669.1,2.62258]
[1723360351928,0.07549872,2669.7,2669.1,5.24511]
[1723360352454,4.90464,2669.6,2668.9,2.6227]
[1723360352653,2.385,2669.4,2669.0,2.62268]
[1723360353821,2.385,2669.4,2668.8,5.79571]
[1723360354045,2.385,2669.4,2669.0,2.6227]
[1723360354255,2.385,2669.4,2668.9,0.55]
[1723360354556,2.385,2669.4,2668.9,3.17272]
[1723360354765,2.385,2669.4,2669.0,2.62269]
[1723360356357,2.385,2669.4,2669.0,5.24531]
[1723360356564,0.07549872,2669.6,2669.1,2.62254]
[1723360356765,0.07549872,2669.6,2669.1,4.87424]
[1723360357155,2.385,2669.8,2669.3,2.62232]
[1723360357857,0.07549872,2669.7,2669.1,5.2451]
[1723360358059,2.69753872,2669.7,2669.1,2.62254]
[1723360358961,2.69753872,2669.7,2669.1,2.62252]
[1723360361038,2.69753872,2669.7,2669.2,2.6225]
[1723360361238,0.07549872,2669.7,2669.3,2.6224]
[1723360361446,2.385,2669.8,2669.3,2.6224]
[1723360361944,2.385,2669.8,2669.4,2.6223]
[1723360362142,9.92673,2670.0,2669.7,2.62195]
[1723360362143,7.305,2670.0,2669.7,2.62195]
[1723360362577,7.305,2670.0,2669.6,2.62209]
[1723360363169,7.305,2670.0,2669.6,5.24413]
[1723360363584,7.305,2670.0,2669.7,2.62196]
[1723360363745,0.005,2670.0,2669.8,5.04556069]
[1723360363955,0.005,2670.0,2669.9,2.62182]
[1723360364467,0.005,2670.0,2669.9,2.69672173]
[1723360364868,0.005,2670.0,2669.8,4.97065]
[1723360365083,0.005,2670.0,2669.8,2.62185]
[1723360367468,0.005,2670.0,2669.8,5.24369]
[1723360368362,0.005,2670.0,2669.8,2.62184]
[1723360369186,0.005,2670.0,2669.9,2.62182]
[1723360370164,0.005,2670.0,2669.8,2.62184]
[1723360371586,0.005,2670.0,2669.9,2.62182]
[1723360373456,0.005,2670.0,2669.8,2.62184]
[1723360373865,0.005,2670.0,2669.8,5.24368]
[1723360374193,0.005,2670.0,2669.9,11.17420666]
[1723360374406,0.005,2670.0,2669.9,11.21734126]
[1723360378596,0.005,2670.0,2669.9,13.83916126]
[1723360379176,0.005,2670.0,2669.9,16.46098126]
[1723360379787,0.005,2670.0,2669.9,13.83916126]
[1723360380096,0.005,2670.0,2669.9,15.53770019]
[1723360380280,0.005,2670.0,2669.9,18.15952019]
[1723360380485,19.77,2671.9,2669.9,18.15952019]
[1723360380486,2.3847,2671.7,2671.4,2.6203]
[1723360380686,2.3847,2671.7,2671.2,2.62049]
[1723360380876,2.3847,2671.7,2670.9,3.0]
[1723360380877,0.31396872,2671.6,2670.9,3.0]
[1723360381197,0.31396872,2671.6,2671.0,5.24133]
[1723360381364,0.31396872,2671.6,2671.1,5.62064]
[1723360381803,2.93411872,2671.6,2671.1,3.0]
[1723360381987,0.79388787,2671.5,2671.1,3.0]
[1723360384764,0.79388787,2671.5,2671.2,2.62054]
[1723360385063,2.3847,2671.7,2671.2,2.62054]
[1723360385763,2.3847,2671.7,2671.2,5.24101]
[1723360385961,2.46019872,2671.7,2671.2,5.24101]
[1723360386200,2.46019872,2671.7,2671.1,5.62062]
[1723360386367,0.48451987,2671.6,2671.2,2.62053]
[1723360386572,0.48451987,2671.6,2671.1,3.0]
[1723360387283,0.07549872,2671.5,2671.0,2.62073]
[1723360387710,2.4971,2671.4,2670.8,8.24173]
[1723360387889,2.89061658,2671.4,2670.9,3.17082]
[1723360388586,2.89061658,2671.4,2671.0,2.62073]
[1723360388789,2.81511786,2671.4,2671.0,2.62073]
[1723360388987,2.81511786,2671.4,2671.1,2.62057]
[1723360389286,2.385,2671.5,2671.3,2.62038]
[1723360390235,2.385,2671.5,2671.2,2.62053]
[1723360390572,2.385,2671.5,2671.0,2.62067]
[1723360390573,0.07549872,2671.4,2671.0,2.62067]
[1723360390906,2.57259872,2671.4,2671.0,2.62067]
[1723360394922,2.57259872,2671.4,2671.0,5.24133]
[1723360395210,2.6235,2671.5,2671.0,5.24133]
[1723360395211,2.385,2671.5,2671.4,2.62034]
[1723360395375,12.1821,2671.8,2671.4,2.62028]
[1723360395580,12.1821,2671.8,2671.4,5.24055]
[1723360395781,9.7971,2671.8,2671.4,5.24055]
[1723360396013,9.7971,2671.8,2671.5,2.62024]
[1723360396198,7.3,2671.8,2671.6,2.62013]
[1723360396716,7.3,2671.8,2671.6,2.62009]
[1723360397101,7.3,2671.8,2671.7,2.62005]
[1723360398606,0.15,2672.0,2671.7,2.62005]
[1723360399482,0.15,2672.0,2671.8,2.61994]
[1723360400095,0.15,2672.0,2671.9,2.61985]
[1723360406426,0.15,2672.0,2671.9,5.2397]
[1723360407303,0.15,2672.0,2671.9,2.61985]
[1723360408886,0.15,2672.0,2671.6,2.4214]
[1723360409093,2.5942,2672.0,2671.7,2.62003]
[1723360410038,2.5942,2672.0,2671.7,5.24001]
[1723360410195,0.15,2672.0,2671.8,2.61988]
[1723360411319,0.15,2672.0,2671.9,2.61985]
[1723360412338,0.15,2672.0,2671.8,2.61995]
[1723360415496,0.15,2672.0,2671.8,2.61988]
[1723360415699,0.15,2672.0,2671.9,2.61985]
[1723360419731,1.142,2672.0,2671.9,2.61985]
[1723360421727,0.15,2672.0,2671.9,8.24585773]
[1723360421926,0.15,2672.0,2671.9,11.41570773]
[1723360422138,0.15,2672.0,2671.9,14.41570773]
[1723360422322,0.15,2672.0,2671.9,11.79585773]
[1723360423217,0.15,2672.0,2671.9,14.41570773]
[1723360423418,0.15,2672.0,2671.9,11.79585773]
[1723360424720,0.15,2672.0,2671.9,14.41570773]
[1723360425107,0.15,2672.0,2671.9,11.79585773]
[1723360427236,0.15,2672.0,2671.9,8.7897]
[1723360427439,0.15,2672.0,2671.9,3.0]
[1723360427910,0.15,2672.0,2671.8,3.0]
[1723360428233,0.992,2671.9,2671.8,3.0]
[1723360428537,0.992,2671.9,2671.8,5.61995]
[1723360428835,0.992,2671.9,2671.8,3.0]
[1723360429004,0.992,2671.9,2671.8,5.61995]
[1723360429206,0.15,2672.0,2671.8,3.0]
[1723360429430,1.142,2672.0,2671.9,5.16939448]
[1723360429631,1.142,2672.0,2671.9,11.2644]
[1723360429835,1.142,2672.0,2671.9,8.7897]
[1723360430139,1.142,2672.0,2671.9,5.61985]
[1723360431555,1.142,2672.0,2671.9,3.0]
[1723360431962,1.142,2672.0,2671.9,5.61985]
[1723360433209,1.142,2672.0,2671.9,3.0]
[1723360435047,1.142,2672.0,2671.9,5.61985]
[1723360435830,1.142,2672.0,2671.9,3.0]
[1723360436530,1.142,2672.0,2671.8,3.0]
[1723360437646,1.142,2672.0,2671.7,3.0]
[1723360437938,0.992,2671.8,2671.7,3.0]
[1723360439138,0.992,2671.8,2671.7,5.62005]
[1723360439714,0.15,2672.0,2671.7,8.918763]
[1723360439920,1.142,2672.0,2671.9,2.61985]
[1723360440134,1.142,2672.0,2671.9,5.61985]
[1723360440712,1.142,2672.0,2671.9,8.65818455]
[1723360440925,1.142,2672.0,2671.9,9.20818455]
[1723360444165,1.142,2672.0,2671.9,8.7897]
[1723360447647,0.15,2672.0,2671.9,8.7897]
[1723360448023,0.15,2672.0,2671.9,11.1914]
[1723360451328,0.15,2672.0,2671.9,8.7897]
[1723360451533,1.142,2672.0,2671.9,8.7897]
[1723360452257,0.15,2672.0,2671.9,8.7897]
[1723360452444,0.15,2672.0,2671.9,9.73255255]
[1723360452621,0.15,2672.0,2671.9,12.13425255]
[1723360455969,0.15,2672.0,2671.9,5.61985]
[1723360457334,0.15,2672.0,2671.9,3.55]
[1723360457534,0.15,2672.0,2671.9,3.0]
[1723360457736,0.15,2672.0,2671.8,3.0]
[1723360457962,0.992,2671.9,2671.8,3.0]
[1723360458134,0.992,2671.9,2671.8,6.16995]
[1723360458760,0.992,2671.9,2671.8,3.0]
[1723360458962,0.992,2671.9,2671.7,3.0]
[1723360459951,0.992,2671.9,2671.8,2.61995]
[1723360460166,0.992,2671.9,2671.8,5.61995]
[1723360462246,1.142,2672.0,2671.9,2.61985]
[1723360462583,1.142,2672.0,2671.9,5.61985]
[1723360463339,1.142,2672.0,2671.9,8.7897]
[1723360463539,1.142,2672.0,2671.9,9.91644]
[1723360463758,1.142,2672.0,2671.9,9.36644]
[1723360464183,0.15,2672.0,2671.9,9.36644]
[1723360464546,0.15,2672.0,2671.9,9.91644]
[1723360465640,0.15,2672.0,2671.9,12.53629]
[1723360466387,0.15,2672.0,2671.9,9.36644]
[1723360466702,0.15,2672.0,2671.9,8.2397]
[1723360466972,0.15,2672.0,2671.9,8.7897]
[1723360473654,0.15,2672.0,2671.9,5.61985]
[1723360474076,0.15,2672.0,2671.9,5.69469135]
[1723360474678,0.15,2672.0,2671.9,8.31454135]
[1723360474887,0.15,2672.0,2671.9,5.69469135]
[1723360476785,0.15,2672.0,2671.9,5.61985]
[1723360477082,0.15,2672.0,2671.9,5.69469134]
[1723360478079,1.142,2672.0,2671.9,5.69469134]
[1723360478294,1.142,2672.0,2671.9,5.61985]
[1723360479659,0.15,2672.0,2671.9,5.61985]
[1723360479987,0.15,2672.0,2671.9,5.69469095]
[1723360481488,0.15,2672.0,2671.9,5.69469152]
[1723360482166,1.142,2672.0,2671.9,5.69469152]
[1723360484889,1.142,2672.0,2671.9,5.61985]
[1723360485462,1.142,2672.0,2671.9,8.2397]
[1723360485658,1.142,2672.0,2671.9,5.61985]
[1723360488002,0.15,2672.0,2671.9,8.2397]
[1723360488696,0.15,2672.0,2671.9,10.4926]
[1723360489273,0.15,2672.0,2671.9,11.54186]
[1723360489472,0.15,2672.0,2671.9,5.61985]
[1723360489802,0.15,2672.0,2671.9,5.69407476]
[1723360489975,0.15,2672.0,2671.9,8.31392476]
[1723360490172,0.15,2672.0,2671.9,5.69407476]
[1723360490472,0.15,2672.0,2671.9,8.31392476]
[1723360490658,0.15,2672.0,2671.9,9.37060724]
[1723360491265,0.15,2672.0,2671.9,6.67653248]
[1723360491470,0.15,2672.0,2671.9,5.61985]
[1723360491855,1.142,2672.0,2671.9,8.2397]
[1723360492094,0.15,2672.0,2671.9,8.31454393]
[1723360492286,0.15,2672.0,2671.9,9.37128832]
[1723360493298,0.15,2672.0,2671.9,8.31454393]
[1723360496978,0.15,2672.0,2671.9,5.69469393]
[1723360497181,0.15,2672.0,2671.9,8.31454393]
[1723360498396,0.15,2672.0,2671.9,5.69469393]
[1723360498703,0.15,2672.0,2671.9,5.61985]
[1723360500512,0.15,2672.0,2671.9,8.2397]
[1723360501111,0.15,2672.0,2671.9,5.61985]
[1723360501815,1.142,2672.0,2671.9,5.61985]
[1723360502715,1.142,2672.0,2671.9,8.2397]
[1723360503224,1.142,2672.0,2671.9,5.61985]
[1723360503596,1.142,2672.0,2671.9,8.2397]
[1723360503910,0.15,2672.0,2671.9,8.2397]
[1723360504315,0.15,2672.0,2671.9,17.20157]
[1723360504518,0.005,2672.7,2672.6,12.82488]
[1723360504724,1e-05,2672.8,2672.7,15.44355]
[1723360505024,0.01082986,2673.5,2673.3,10.20364]
[1723360505247,0.01082986,2673.5,2673.3,7.58516]
[1723360505540,0.01082986,2673.5,2673.3,11.13516]
[1723360505716,0.01082986,2673.5,2673.3,11.83303948]
[1723360506231,0.997,2673.4,2672.7,1.943555]
[1723360506516,0.992,2673.2,2672.8,0.55]
[1723360506684,0.992,2673.2,2672.9,2.61884]
[1723360507098,0.992,2673.2,2673.0,3.0]
[1723360507303,0.992,2673.2,2672.9,3.0]
[1723360507498,0.992,2673.0,2672.9,3.0]
[1723360507699,0.992,2673.0,2672.5,2.61923]
[1723360507996,0.992,2672.8,2672.5,2.61923]
[1723360508402,0.992,2672.8,2672.7,2.61907]
[1723360508602,0.992,2672.8,2672.6,0.07482636]
[1723360508789,0.53486355,2673.2,2672.7,2.6938968]
[1723360509100,0.992,2672.9,2672.7,2.61907]
[1723360509486,0.992,2672.9,2672.6,0.0748268]
[1723360509691,0.992,2672.7,2672.4,3.0]
[1723360509931,0.992,2672.7,2672.3,2.61942]
[1723360509932,0.992,2672.7,2672.3,2.61937]
[1723360510136,0.992,2672.7,2672.5,2.61919]
[1723360510290,0.992,2672.7,2672.5,2.61918]
[1723360510916,0.992,2672.7,2672.6,2.61917]
[1723360511222,0.992,2672.9,2672.8,5.23785]
[1723360511721,2.3987,2673.3,2672.8,2.61888]
[1723360511899,2.69410872,2673.2,2672.5,3.0]
[1723360512099,3.12796087,2673.1,2672.4,2.61929]
[1723360512424,2.3987,2672.9,2672.5,2.61924]
[1723360513123,0.07549872,2672.8,2671.9,2.62082474]
[1723360513323,2.61932,2672.5,2671.9,0.00105474]
[1723360513541,2.61932,2672.5,2671.9,2.62084474]
[1723360513826,2.61932,2672.5,2671.9,2.61979]
[1723360513998,2.378,2672.2,2671.0,2.3482]
[1723360514344,2.378,2672.2,2670.1,3.20421601]
[1723360514345,4.99793,2671.9,2671.1,2.62057]
[1723360514499,2.378,2671.9,2671.4,2.62028]
[1723360514711,2.3987,2672.0,2671.5,2.62015]
[1723360514896,2.378,2672.2,2671.7,2.62003]
[1723360515222,2.85567,2672.2,2671.7,2.62003]
[1723360515421,2.6193,2672.5,2671.8,0.07484779]
[1723360515422,5.018,2672.5,2671.8,0.07484779]
[1723360515639,5.018,2672.5,2671.6,0.07484773]
[1723360515789,5.018,2672.5,2671.9,2.61979]
[1723360515990,2.61947,2672.3,2671.6,2.62011]
[1723360516307,5.09380872,2672.2,2671.7,3.0]
[1723360516505,2.61966,2672.1,2671.7,3.0]
[1723360516823,2.3987,2671.9,2671.3,2.62039]
[1723360517212,2.3987,2671.9,2671.2,2.62051]
[1723360517423,2.3987,2672.0,2671.4,2.6203]
[1723360517729,2.3987,2672.0,2670.9,2.3482]
[1723360517730,5.01765,2672.9,2672.3,2.61944]
[1723360517895,2.61898,2672.8,2672.1,2.61959]
[1723360518208,5.01765,2672.9,2671.8,2.3482]
[1723360518209,2.69459872,2672.7,2672.0,2.61975]
[1723360518408,5.01797,2672.5,2672.1,3.0]
[1723360518595,2.69486872,2672.4,2671.9,3.0]
[1723360519127,2.47419872,2672.5,2671.9,3.0]
[1723360519428,2.61954,2672.3,2671.9,3.0]
[1723360519601,0.261954,2672.2,2671.6,2.62008]
[1723360519794,0.261954,2672.2,2671.7,3.0]
[1723360519995,7.39599,2672.5,2671.8,2.61986]
[1723360520197,7.39599,2672.5,2671.9,5.61983]
[1723360520529,4.7767,2672.8,2672.3,2.61937]
[1723360520709,4.7767,2672.8,2672.4,2.61935]
[1723360521027,2.42667,2672.8,2672.4,2.61935]
[1723360521200,4.7767,2673.1,2672.6,2.61917]
[1723360521401,4.7767,2673.1,2672.5,2.61926]
[1723360521612,4.7767,2673.1,2672.6,2.61916]
[1723360522036,0.07549872,2673.0,2672.5,2.61926]
[1723360522218,3.10416987,2672.9,2672.3,2.61943]
[1723360522404,2.69449872,2672.8,2672.4,3.0]
[1723360522606,2.69449872,2672.8,2672.2,5.61955]
[1723360522607,2.619,2672.8,2672.2,5.61955]
[1723360523035,0.56071859,2672.9,2672.3,2.61946]
[1723360523218,0.56071859,2672.9,2672.2,3.0]
[1723360523219,2.93695986,2672.8,2672.2,3.0]
[1723360523421,2.61862,2673.2,2672.5,2.61917]
[1723360523735,2.61862,2673.2,2672.6,2.61911]
[1723360523936,9.94142799,2673.3,2672.8,2.61895]
[1723360524129,9.94142799,2673.3,2672.6,8.23819]
[1723360524130,1.4918848,2673.2,2672.6,8.23819]
[1723360524321,12.55992799,2673.3,2672.7,5.61898]
[1723360524929,12.55992799,2673.3,2672.7,3.07482591]
[1723360525944,12.55992799,2673.3,2673.0,2.61877]
[1723360525945,2.378,2673.3,2673.0,2.61877]
[1723360526243,0.005,2673.4,2673.3,2.61848]
[1723360526605,0.005,2673.4,2673.3,5.6932846]
[1723360526811,0.005,2673.4,2673.3,9.14294206]
[1723360527648,0.005,2673.4,2673.3,9.69294206]
[1723360528332,0.005,2673.4,2673.3,5.61848]
[1723360528540,0.005,2673.4,2673.3,3.0]
[1723360528738,0.005,2673.4,2673.2,3.0]
[1723360528940,0.005,2673.4,2673.0,5.61869]
[1723360529444,0.005,2673.4,2673.1,2.61868]
[1723360529763,0.005,2673.4,2673.2,3.0]
[1723360530062,0.005,2673.4,2672.7,2.61903]
[1723360530221,0.08049872,2673.4,2672.7,2.61903]
[1723360530419,0.08049872,2673.4,2672.8,2.6189]
[1723360530626,0.08049872,2673.4,2672.6,0.261922]
[1723360530627,0.005,2673.4,2672.9,2.61879]
[1723360530932,0.005,2673.4,2673.0,0.07481618]
[1723360531444,0.005,2673.4,2672.9,5.23759]
[1723360531647,0.005,2673.4,2672.9,5.2376]
[1723360531946,0.005,2673.4,2672.7,5.619]
[1723360532123,2.69888872,2673.4,2672.7,5.619]
[1723360532509,0.005,2673.4,2672.7,3.8268622]
[1723360532711,0.005,2673.4,2673.0,2.61875]
[1723360532978,0.005,2673.4,2673.0,0.07480836]
[1723360533180,0.005,2673.4,2673.0,3.07480836]
[1723360533357,0.005,2673.4,2673.0,3.0]
[1723360533564,2.62339,2673.4,2673.0,3.0]
[1723360533884,2.62343,2673.4,2673.0,3.0]
[1723360534181,2.62343,2673.4,2672.9,3.0]
[1723360534547,2.62343,2673.4,2672.8,6.46420022]
[1723360534744,2.62343,2673.4,2673.0,2.3877]
[1723360534745,0.005,2673.4,2673.0,2.3877]
[1723360534949,0.005,2673.4,2673.1,2.61859]
[1723360535183,0.005,2673.4,2673.2,0.500629]
[1723360535692,0.005,2673.4,2672.9,2.6188]
[1723360535895,0.005,2673.4,2673.0,3.0]
[1723360536263,0.005,2673.4,2673.0,5.61875]
[1723360536464,0.005,2673.4,2673.3,2.61848]
[1723360536672,0.005,2673.4,2673.3,3.0]
[1723360537163,0.005,2673.4,2673.1,3.0]
[1723360538570,0.005,2673.4,2673.1,6.180463]
[1723360538769,0.005,2673.4,2673.3,2.61848]
[1723360538950,0.005,2673.4,2673.3,8.3117583]
[1723360539155,0.005,2673.4,2673.3,8.78696]
[1723360543400,0.005,2673.4,2673.3,11.40544]
[1723360543599,0.005,2673.4,2673.3,10.2224613]
[1723360545397,0.005,2673.4,2673.3,4.4355013]
[1723360545593,0.005,2673.4,2673.3,3.0]
[1723360546098,0.005,2673.4,2672.3,2.61941]
[1723360546099,4.94523,2673.1,2672.3,2.61941]
[1723360546289,2.6188,2673.0,2672.3,2.61938]
[1723360546610,2.6188,2673.0,2672.3,0.750509]
[1723360546611,5.23785,2672.9,2672.3,0.750509]
[1723360546821,2.61914,2672.7,2672.0,2.61968]
[1723360547025,2.61914,2672.7,2671.9,4.88591]
[1723360547317,2.69447872,2672.8,2672.1,2.61957]
[1723360547483,2.69447872,2672.8,2672.2,0.261957]
[1723360547801,2.69457872,2672.7,2672.1,2.61957]
[1723360547966,2.61918,2672.6,2671.9,4.88593]
[1723360548173,2.61952,2672.3,2671.7,2.62002]
[1723360548706,5.02127872,2672.5,2671.7,2.62002]
[1723360548707,4.94578,2672.5,2671.7,2.61995]
[1723360548904,4.94578,2672.5,2671.8,2.69478677]
[1723360549483,2.3265,2672.5,2672.0,2.61968]
[1723360549817,2.61909,2672.7,2672.0,0.02670445]
[1723360549975,3.113649,2672.7,2671.8,4.88597]
[1723360550373,2.3265,2672.8,2671.8,2.2661]
[1723360550573,2.3265,2672.8,2672.2,2.61955]
[1723360550769,2.378,2672.9,2672.2,2.61947]
[1723360550991,4.99688,2672.9,2672.3,3.0]
[1723360551214,5.729201,2672.9,2672.3,3.0]
[1723360551569,5.729201,2672.9,2672.4,0.04829548]
[1723360552293,5.729201,2672.9,2672.4,0.07483131]
[1723360552822,0.732321,2672.9,2672.4,2.69419131]
[1723360552973,4.94521,2673.1,2672.4,2.69419131]
[1723360553392,2.61878,2673.0,2672.4,2.69419131]
[1723360553915,2.61927,2672.5,2672.3,3.0]
[1723360554115,2.61927,2672.5,2671.8,2.2661]
[1723360554116,2.61928,2672.5,2671.8,3.0]
[1723360554424,2.61928,2672.5,2671.5,2.62021]
[1723360554425,2.61958,2672.2,2671.5,2.62021]